[Event "Boardwalk Pearson Invitational 2019"]
[Site "Port Elizabeth"]
[Date "2019.03.31"]
[Round "5.4"]
[White "Beukes, Dante M"]
[Black "Kromhout, Ewan"]
[Result "1-0"]
[ECO "B00"]
[WhiteElo "2114"]
[BlackElo "2007"]
[Annotator "NA"]
[PlyCount "99"]
[EventDate "2019.03.29"]
[EventType "swiss"]
[EventCountry "RSA"]
[SourceTitle "playchess.com"]
[Source "ChessBase"]
[SourceQuality "1"]
[TimeControl "40/5400+30:1800+30"]

1. e4 {[%emt 0:00:34]} c5 {[%emt 0:00:00]} 2. Nf3 {[%emt 0:00:04]} e6 {[%emt 0:00:00]} 3. c3 {[%emt 0:00:04]} b6 {[%emt 0:00:00]} 4. d4 {[%emt 0:00:09]} Bb7 {[%emt 0:00:00]} 5. Bd3 {[%emt 0:00:16]} Nf6 {[%emt 0:00:04]} 6. Qe2 {[%emt 0:00:37]} d5 {[%emt 0:00:10]} 7. e5 {[%emt 0:00:36]} Nfd7 {[%emt 0:00:03]} 8. O-O {[%emt 0:00:22]} Nc6 {[%emt 0:00:05]} 9. Re1 $11 {[%emt 0:05:19]} Be7 {[%emt 0:00:10]} 10. Nbd2 {[%emt 0:02:10]} a5 {[%emt 0:09:47]} 11. Nf1 {[%emt 0:05:33]} Qc8 {[%emt 0:01:17]} 12. Bc2 {[%emt 0:05:16]} Ba6 {[%emt 0:06:22]} 13. Qd1 {[%emt 0:00:59]} h6 {[%emt 0:05:47]} 14. h4 {[%emt 0:05:27]} Qc7 {[%emt 0:03:43]} 15. Be3 {[%emt 0:05:49]} Rc8 {[%emt 0:08:53]} 16. Rc1 {[%emt 0:02:37]} b5 {[%emt 0:07:32]} 17. Ng3 {[%emt 0:04:33]} Qb6 {[%emt 0:09:55]} 18. Nh5 {[%emt 0:04:54]} Bf8 {[%emt 0:03:29]} 19. Nf4 {[%emt 0:01:25]} Nd8 {[%emt 0:05:54]} 20. dxc5 {[%emt 0:11:08]} Bxc5 {[%emt 0:00:37]} 21. Bxc5 {[%emt 0:00:09]} Qxc5 {[%emt 0:01:52]} 22. Nd4 {[%emt 0:00:19]} Nf8 {[%emt 0:04:19]} 23. Qg4 {[%emt 0:02:15]} g6 {[%emt 0:05:32]} 24. Re3 {[%emt 0:03:55]} h5 {[%emt 0:04:44]} 25. Qh3 {[%emt 0:01:22]} Qe7 {[%emt 0:00:45]} 26. Bd3 {[%emt 0:01:50]} Qb7 {[%emt 0:03:22]} 27. Qf3 {[%emt 0:03:59]} b4 {[%emt 0:02:27]} 28. Bc2 {[%emt 0:00:57]} Qd7 {[%emt 0:03:37]} 29. Qd1 {[%emt 0:01:19]} Qe7 {[%emt 0:03:24]} 30. Ba4+ {[%emt 0:06:29]} Nd7 {[%emt 0:00:04]} 31. Nf3 {[%emt 0:01:07]} Kf8 {[%emt 0:01:32]} 32. Ng5 {[%emt 0:01:40]} Nc5 {[%emt 0:04:08]} 33. Bc2 {[%emt 0:00:46]} bxc3 {[%emt 0:00:49]} 34. bxc3 {[%emt 0:00:37]} Kg7 {[%emt 0:00:47]} 35. Rg3 {[%emt 0:01:41]} Ne4 {[%emt 0:00:42]} 36. Bxe4 {[%emt 0:07:45]} dxe4 {[%emt 0:00:01]} 37. Nxf7 {[%emt 0:00:56]} Qxf7 {[%emt 0:03:20]} 38. Rxg6+ {[%emt 0:03:31]} Qxg6 {[%emt 0:00:13]} 39. Nxg6 {[%emt 0:00:07]} Kxg6 {[%emt 0:00:30]} 40. Qd6 {[%emt 0:00:00]} Bc4 {[%emt 0:00:00]} 41. Re1 {[%emt 0:05:16]} Nc6 {[%emt 0:07:57]} 42. Qd2 {[%emt 0:14:31]} Kf7 {[%emt 0:09:37]} 43. Qd7+ {[%emt 0:00:57]} Ne7 {[%emt 0:00:25]} 44. Rxe4 {[%emt 0:01:11]} Rhe8 {[%emt 0:01:25]} 45. Rf4+ {[%emt 0:01:23]} Kg7 {[%emt 0:00:33]} 46. Rxc4 {[%emt 0:01:03]} Rcd8 {[%emt 0:02:21]} 47. Qxe6 {[%emt 0:00:50]} Nd5 {[%emt 0:05:45]} 48. Qf5 {[%emt 0:00:22]} Re7 {[%emt 0:02:13]} 49. Rc6 {[%emt 0:00:51]} Red7 50. Qxd7+ 1-0